No.of Trans,Dept Family,Entity Name,Cert Date,Supplier Name,Reference,Gross Amt,Group/Department,Type of Expenditure - Subjective Codes
1,DCMS,EH,26/06/2014,Adtech Global (UK) Ltd,40069281,"24,586.80",Resources-IMT,Planned Maintenance
2,DCMS,EH,12/06/2014,AIS Total Security Ltd,40067226,"31,754.60",National Collections-Property Maintenance Programme,Annual Cyclical Work M & E
3,DCMS,EH,09/06/2014,All Hallows Leisure Park,90513899,"10,000.00",Heritage Protection & Planning-Nat. Planning & Conservation,GRANTS PAYABLE OTHER GRANTS
4,DCMS,EH,20/06/2014,Alstonefield PCC,82002996,"36,000.00",Heritage Protection & Planning-Nat. Planning & Conservation,GRANTS PAYABLE PLACES OF WORSHIP
5,DCMS,EH,25/06/2014,Ancestors of Dover Ltd,60002715,"16,025.27",National Collections-Historic Properties Department,Goods & Souvenirs Purchases
6,DCMS,EH,30/06/2014,Antenna Audio,40063919,"22,800.00",National Collections-Historic Properties Department,Cost of Audio Tape
7,DCMS,EH,05/06/2014,Antenna Audio,40063920,"10,350.00",National Collections-Historic Properties Department,Cost of Audio Tape
8,DCMS,EH,30/06/2014,Antenna Audio,40066674,"12,750.00",National Collections-Historic Properties Department,Cost of Audio Tape
9,DCMS,EH,26/06/2014,Archaeological Research Services,40069510,"25,000.00",Heritage Protection & Planning-Heritage Protection,Hist Environ Prog Projects Gra
10,DCMS,EH,03/06/2014,Birmingham Conservation Trust,82002950,"56,250.00",Heritage Protection & Planning-Nat. Planning & Conservation,GRANTS PAYABLE HISTORIC BUILDINGS
11,DCMS,EH,03/06/2014,Birmingham Conservation Trust,82002956,"50,000.00",Heritage Protection & Planning-Nat. Planning & Conservation,GRANTS PAYABLE HISTORIC BUILDINGS
12,DCMS,EH,24/06/2014,Boys & Maughan,20057007,"19,000.00",National Collections-National Collections Centre,Legal Fees
13,DCMS,EH,19/06/2014,Bray Leino Ltd,40067230,"35,858.40",National Collections-Marketing,Marketing Creative
14,DCMS,EH,09/06/2014,Britannia Coaches,40064534,"15,937.50",National Collections-Historic Properties Department,Exhibits/Displays
15,DCMS,EH,13/06/2014,British Gas,20056541,64.2,National Collections-Historic Properties Department,Electricity
16,DCMS,EH,13/06/2014,British Gas,20056541,62.65,National Collections-Historic Properties Department,Electricity
17,DCMS,EH,13/06/2014,British Gas,20056541,488.06,National Collections-Historic Properties Department,Electricity
18,DCMS,EH,13/06/2014,British Gas,20056541,111.76,National Collections-Historic Properties Department,Electricity
19,DCMS,EH,13/06/2014,British Gas,20056541,994.07,National Collections-Historic Properties Department,Electricity
20,DCMS,EH,13/06/2014,British Gas,20056541,114.59,National Collections-Historic Properties Department,Electricity
21,DCMS,EH,13/06/2014,British Gas,20056541,644.47,National Collections-Historic Properties Department,Electricity
22,DCMS,EH,13/06/2014,British Gas,20056541,54.97,National Collections-Historic Properties Department,Electricity
23,DCMS,EH,13/06/2014,British Gas,20056541,213.98,National Collections-Historic Properties Department,Electricity
24,DCMS,EH,13/06/2014,British Gas,20056541,102.15,National Collections-Historic Properties Department,Electricity
25,DCMS,EH,13/06/2014,British Gas,20056541,33.35,National Collections-Historic Properties Department,Electricity
26,DCMS,EH,13/06/2014,British Gas,20056541,-12.47,National Collections-Historic Properties Department,Electricity
27,DCMS,EH,13/06/2014,British Gas,20056541,-253.36,National Collections-Historic Properties Department,Electricity
28,DCMS,EH,13/06/2014,British Gas,20056541,-26.49,National Collections-Historic Properties Department,Electricity
29,DCMS,EH,13/06/2014,British Gas,20056541,-13.8,National Collections-Historic Properties Department,Electricity
30,DCMS,EH,13/06/2014,British Gas,20056541,-496.3,National Collections-Historic Properties Department,Electricity
31,DCMS,EH,13/06/2014,British Gas,20056541,-165.8,National Collections-Historic Properties Department,Electricity
32,DCMS,EH,13/06/2014,British Gas,20056541,-261.62,National Collections-Historic Properties Department,Electricity
33,DCMS,EH,13/06/2014,British Gas,20056541,39.36,National Collections-Historic Properties Department,Electricity
34,DCMS,EH,13/06/2014,British Gas,20056541,38.41,National Collections-Historic Properties Department,Electricity
35,DCMS,EH,13/06/2014,British Gas,20056541,81.1,National Collections-Historic Properties Department,Electricity
36,DCMS,EH,13/06/2014,British Gas,20056541,850.7,National Collections-Historic Properties Department,Electricity
37,DCMS,EH,13/06/2014,British Gas,20056541,117,National Collections-Historic Properties Department,Electricity
38,DCMS,EH,13/06/2014,British Gas,20056541,34.79,National Collections-Historic Properties Department,Electricity
39,DCMS,EH,13/06/2014,British Gas,20056541,110.2,National Collections-Historic Properties Department,Electricity
40,DCMS,EH,13/06/2014,British Gas,20056541,228.08,National Collections-Historic Properties Department,Electricity
41,DCMS,EH,13/06/2014,British Gas,20056541,21.04,National Collections-Historic Properties Department,Electricity
42,DCMS,EH,13/06/2014,British Gas,20056541,253.16,National Collections-Historic Properties Department,Electricity
43,DCMS,EH,13/06/2014,British Gas,20056541,48.36,National Collections-Historic Properties Department,Electricity
44,DCMS,EH,13/06/2014,British Gas,20056541,82.03,National Collections-Historic Properties Department,Electricity
45,DCMS,EH,13/06/2014,British Gas,20056541,128.18,National Collections-Historic Properties Department,Electricity
46,DCMS,EH,13/06/2014,British Gas,20056541,122.31,National Collections-Historic Properties Department,Electricity
47,DCMS,EH,13/06/2014,British Gas,20056541,19.23,National Collections-Historic Properties Department,Electricity
48,DCMS,EH,13/06/2014,British Gas,20056541,224.63,National Collections-Historic Properties Department,Electricity
49,DCMS,EH,13/06/2014,British Gas,20056541,56.84,National Collections-Historic Properties Department,Electricity
50,DCMS,EH,13/06/2014,British Gas,20056541,"2,374.64",National Collections-Historic Properties Department,Electricity
51,DCMS,EH,13/06/2014,British Gas,20056541,97.82,National Collections-Historic Properties Department,Electricity
52,DCMS,EH,13/06/2014,British Gas,20056541,96.95,National Collections-Historic Properties Department,Electricity
53,DCMS,EH,13/06/2014,British Gas,20056541,322.82,National Collections-Historic Properties Department,Electricity
54,DCMS,EH,13/06/2014,British Gas,20056541,108.59,National Collections-Historic Properties Department,Electricity
55,DCMS,EH,13/06/2014,British Gas,20056541,494.65,National Collections-Historic Properties Department,Electricity
56,DCMS,EH,13/06/2014,British Gas,20056541,129.77,National Collections-Historic Properties Department,Electricity
57,DCMS,EH,13/06/2014,British Gas,20056541,34.28,National Collections-Historic Properties Department,Electricity
58,DCMS,EH,13/06/2014,British Gas,20056541,26.16,National Collections-Historic Properties Department,Electricity
59,DCMS,EH,13/06/2014,British Gas,20056541,12.43,National Collections-Historic Properties Department,Electricity
60,DCMS,EH,13/06/2014,British Gas,20056541,12.43,National Collections-Historic Properties Department,Electricity
61,DCMS,EH,13/06/2014,British Gas,20056541,11.51,National Collections-Historic Properties Department,Electricity
62,DCMS,EH,13/06/2014,British Gas,20056541,287.39,National Collections-Historic Properties Department,Electricity
63,DCMS,EH,13/06/2014,British Gas,20056541,16.94,National Collections-Historic Properties Department,Electricity
64,DCMS,EH,13/06/2014,British Gas,20056541,93.86,National Collections-Historic Properties Department,Electricity
65,DCMS,EH,13/06/2014,British Gas,20056541,107.72,National Collections-Historic Properties Department,Electricity
66,DCMS,EH,13/06/2014,British Gas,20056541,12.96,National Collections-Historic Properties Department,Electricity
67,DCMS,EH,13/06/2014,British Gas,20056541,792.38,National Collections-Historic Properties Department,Electricity
68,DCMS,EH,13/06/2014,British Gas,20056541,15,National Collections-Historic Properties Department,Electricity
69,DCMS,EH,13/06/2014,British Gas,20056541,199.33,National Collections-Historic Properties Department,Electricity
70,DCMS,EH,13/06/2014,British Gas,20056541,45.33,National Collections-Historic Properties Department,Electricity
71,DCMS,EH,13/06/2014,British Gas,20056541,416.65,National Collections-Historic Properties Department,Electricity
72,DCMS,EH,13/06/2014,British Gas,20056541,98.99,National Collections-Historic Properties Department,Electricity
73,DCMS,EH,13/06/2014,British Gas,20056541,32.88,National Collections-Historic Properties Department,Electricity
74,DCMS,EH,13/06/2014,British Gas,20056541,14.21,National Collections-Historic Properties Department,Electricity
75,DCMS,EH,13/06/2014,British Gas,20056541,163.76,National Collections-Historic Properties Department,Electricity
76,DCMS,EH,13/06/2014,British Gas,20056541,60.68,National Collections-Historic Properties Department,Electricity
77,DCMS,EH,13/06/2014,British Gas,20056541,106.01,National Collections-Historic Properties Department,Electricity
78,DCMS,EH,13/06/2014,British Gas,20056541,45.21,National Collections-Historic Properties Department,Electricity
79,DCMS,EH,13/06/2014,British Gas,20056541,22.43,National Collections-Historic Properties Department,Electricity
80,DCMS,EH,13/06/2014,British Gas,20056541,61.09,National Collections-Historic Properties Department,Electricity
81,DCMS,EH,13/06/2014,British Gas,20056541,189.35,National Collections-Historic Properties Department,Electricity
82,DCMS,EH,13/06/2014,British Gas,20056541,"3,215.44",National Collections-Historic Properties Department,Electricity
83,DCMS,EH,13/06/2014,British Gas,20056541,498.05,National Collections-Historic Properties Department,Electricity
84,DCMS,EH,13/06/2014,British Gas,20056541,15.37,National Collections-Historic Properties Department,Electricity
85,DCMS,EH,13/06/2014,British Gas,20056541,35.24,National Collections-Historic Properties Department,Electricity
86,DCMS,EH,13/06/2014,British Gas,20056541,90.83,National Collections-Historic Properties Department,Electricity
87,DCMS,EH,13/06/2014,British Gas,20056541,56.82,National Collections-Historic Properties Department,Electricity
88,DCMS,EH,13/06/2014,British Gas,20056541,298.13,National Collections-Historic Properties Department,Electricity
89,DCMS,EH,13/06/2014,British Gas,20056541,506.9,National Collections-Historic Properties Department,Electricity
90,DCMS,EH,13/06/2014,British Gas,20056541,86.56,National Collections-Historic Properties Department,Electricity
91,DCMS,EH,13/06/2014,British Gas,20056541,13.21,National Collections-Historic Properties Department,Electricity
92,DCMS,EH,13/06/2014,British Gas,20056541,81.11,National Collections-Historic Properties Department,Electricity
93,DCMS,EH,13/06/2014,British Gas,20056541,203.98,National Collections-Historic Properties Department,Electricity
94,DCMS,EH,13/06/2014,British Gas,20056541,265.92,National Collections-Historic Properties Department,Electricity
95,DCMS,EH,13/06/2014,British Gas,20056541,13.97,National Collections-Historic Properties Department,Electricity
96,DCMS,EH,13/06/2014,British Gas,20056541,192.38,National Collections-Historic Properties Department,Electricity
97,DCMS,EH,13/06/2014,British Gas,20056541,422.33,National Collections-Historic Properties Department,Electricity
98,DCMS,EH,13/06/2014,British Gas,20056541,69,National Collections-Historic Properties Department,Electricity
99,DCMS,EH,13/06/2014,British Gas,20056541,58.07,National Collections-Historic Properties Department,Electricity
100,DCMS,EH,13/06/2014,British Gas,20056541,162.54,National Collections-Historic Properties Department,Electricity
101,DCMS,EH,13/06/2014,British Gas,20056541,65.21,National Collections-Historic Properties Department,Electricity
102,DCMS,EH,13/06/2014,British Gas,20056541,269.1,National Collections-Historic Properties Department,Electricity
103,DCMS,EH,13/06/2014,British Gas,20056541,42.97,National Collections-Historic Properties Department,Electricity
104,DCMS,EH,13/06/2014,British Gas,20056541,128.81,National Collections-Historic Properties Department,Electricity
105,DCMS,EH,13/06/2014,British Gas,20056541,63.63,National Collections-Historic Properties Department,Electricity
106,DCMS,EH,13/06/2014,British Gas,20056541,33.42,National Collections-Historic Properties Department,Electricity
107,DCMS,EH,13/06/2014,British Gas,20056546,-32.55,National Collections-Historic Properties Department,Electricity
108,DCMS,EH,13/06/2014,British Gas,20056546,36.73,National Collections-Historic Properties Department,Electricity
109,DCMS,EH,13/06/2014,British Gas,20056546,56.43,National Collections-Historic Properties Department,Electricity
110,DCMS,EH,13/06/2014,British Gas,20056546,469,National Collections-Historic Properties Department,Electricity
111,DCMS,EH,13/06/2014,British Gas,20056546,62.72,National Collections-Historic Properties Department,Electricity
112,DCMS,EH,13/06/2014,British Gas,20056546,302.71,National Collections-Historic Properties Department,Electricity
113,DCMS,EH,13/06/2014,British Gas,20056546,125.14,National Collections-Historic Properties Department,Electricity
114,DCMS,EH,13/06/2014,British Gas,20056546,"1,073.66",National Collections-Historic Properties Department,Electricity
115,DCMS,EH,13/06/2014,British Gas,20056546,196.13,National Collections-Historic Properties Department,Electricity
116,DCMS,EH,13/06/2014,British Gas,20056546,10.34,National Collections-Historic Properties Department,Electricity
117,DCMS,EH,13/06/2014,British Gas,20056546,13.46,National Collections-Historic Properties Department,Electricity
118,DCMS,EH,13/06/2014,British Gas,20056546,42.78,National Collections-Historic Properties Department,Electricity
119,DCMS,EH,13/06/2014,British Gas,20056546,"2,041.30",National Collections-Historic Properties Department,Electricity
120,DCMS,EH,13/06/2014,British Gas,20056546,42.2,National Collections-Historic Properties Department,Electricity
121,DCMS,EH,13/06/2014,British Gas,20056546,478.8,National Collections-Historic Properties Department,Electricity
122,DCMS,EH,13/06/2014,British Gas,20056546,13.28,National Collections-Historic Properties Department,Electricity
123,DCMS,EH,13/06/2014,British Gas,20056546,24.62,National Collections-Historic Properties Department,Electricity
124,DCMS,EH,13/06/2014,British Gas,20056546,500.7,National Collections-Historic Properties Department,Electricity
125,DCMS,EH,13/06/2014,British Gas,20056546,22.42,National Collections-Historic Properties Department,Electricity
126,DCMS,EH,13/06/2014,British Gas,20056546,80.21,National Collections-Historic Properties Department,Electricity
127,DCMS,EH,13/06/2014,British Gas,20056546,31.51,National Collections-Historic Properties Department,Electricity
128,DCMS,EH,13/06/2014,British Gas,20056546,58.31,National Collections-Historic Properties Department,Electricity
129,DCMS,EH,13/06/2014,British Gas,20056546,16.38,National Collections-Historic Properties Department,Electricity
130,DCMS,EH,13/06/2014,British Gas,20056546,13.28,National Collections-Historic Properties Department,Electricity
131,DCMS,EH,13/06/2014,British Gas,20056546,684.91,National Collections-Historic Properties Department,Electricity
132,DCMS,EH,13/06/2014,British Gas,20056546,409.27,National Collections-Historic Properties Department,Electricity
133,DCMS,EH,13/06/2014,British Gas,20056546,"1,088.22",National Collections-Historic Properties Department,Electricity
134,DCMS,EH,13/06/2014,British Gas,20056546,"2,487.31",Heritage Protection & Planning-Heritage Protection,Electricity
135,DCMS,EH,13/06/2014,British Gas,20056546,285.9,National Collections-Historic Properties Department,Electricity
136,DCMS,EH,13/06/2014,British Gas,20056546,27.01,National Collections-Historic Properties Department,Electricity
137,DCMS,EH,13/06/2014,British Gas,20056546,102.57,National Collections-Historic Properties Department,Electricity
138,DCMS,EH,13/06/2014,British Gas,20056546,14.83,National Collections-Historic Properties Department,Electricity
139,DCMS,EH,13/06/2014,British Gas,20056546,13.28,National Collections-Historic Properties Department,Electricity
140,DCMS,EH,13/06/2014,British Gas,20056546,61.38,National Collections-Historic Properties Department,Electricity
141,DCMS,EH,13/06/2014,British Gas,20056546,12.74,National Collections-Historic Properties Department,Electricity
142,DCMS,EH,13/06/2014,British Gas,20056546,13.28,National Collections-Historic Properties Department,Electricity
143,DCMS,EH,13/06/2014,British Gas,20056546,560.24,National Collections-Historic Properties Department,Electricity
144,DCMS,EH,13/06/2014,British Gas,20056546,596.41,National Collections-Historic Properties Department,Electricity
145,DCMS,EH,13/06/2014,British Gas,20056546,21.01,National Collections-Historic Properties Department,Electricity
146,DCMS,EH,13/06/2014,British Gas,20056546,77.74,National Collections-Historic Properties Department,Electricity
147,DCMS,EH,13/06/2014,British Gas,20056546,24.75,National Collections-Historic Properties Department,Electricity
148,DCMS,EH,13/06/2014,British Gas,20056547,13.79,National Collections-Historic Properties Department,Electricity
149,DCMS,EH,13/06/2014,British Gas,20056547,19.33,National Collections-Historic Properties Department,Electricity
150,DCMS,EH,13/06/2014,British Gas,20056547,50.66,National Collections-Historic Properties Department,Electricity
151,DCMS,EH,13/06/2014,British Gas,20056547,28.41,National Collections-Historic Properties Department,Electricity
152,DCMS,EH,13/06/2014,British Gas,20056547,38.26,National Collections-Historic Properties Department,Electricity
153,DCMS,EH,13/06/2014,British Gas,20056547,14,National Collections-Historic Properties Department,Electricity
154,DCMS,EH,13/06/2014,British Gas,20056547,175.19,National Collections-Historic Properties Department,Electricity
155,DCMS,EH,13/06/2014,British Gas,20056547,64.52,National Collections-Historic Properties Department,Electricity
156,DCMS,EH,13/06/2014,British Gas,20056547,87.6,National Collections-Historic Properties Department,Electricity
157,DCMS,EH,13/06/2014,British Gas,20056547,220.24,National Collections-Historic Properties Department,Electricity
158,DCMS,EH,13/06/2014,British Gas,20056547,16.74,National Collections-Historic Properties Department,Electricity
159,DCMS,EH,13/06/2014,British Gas,20056547,"1,778.48",National Collections-Historic Properties Department,Electricity
160,DCMS,EH,13/06/2014,British Gas,20056547,"2,106.58",National Collections-Historic Properties Department,Electricity
161,DCMS,EH,13/06/2014,British Gas,20056547,"1,482.88",National Collections-Historic Properties Department,Electricity
162,DCMS,EH,13/06/2014,British Gas,20056547,92.94,National Collections-Historic Properties Department,Electricity
163,DCMS,EH,13/06/2014,British Gas,20056547,44.64,National Collections-Historic Properties Department,Electricity
164,DCMS,EH,13/06/2014,British Gas,20056547,14.02,National Collections-Historic Properties Department,Electricity
165,DCMS,EH,13/06/2014,British Gas,20056547,318.9,National Collections-Historic Properties Department,Electricity
166,DCMS,EH,13/06/2014,British Gas,20056547,68.6,National Collections-Historic Properties Department,Electricity
167,DCMS,EH,13/06/2014,British Gas,20056547,16.28,National Collections-Historic Properties Department,Electricity
168,DCMS,EH,13/06/2014,British Gas,20056547,41.07,National Collections-Historic Properties Department,Electricity
169,DCMS,EH,13/06/2014,British Gas,20056547,339.46,National Collections-Historic Properties Department,Electricity
170,DCMS,EH,13/06/2014,British Gas,20056547,18.13,National Collections-Historic Properties Department,Electricity
171,DCMS,EH,13/06/2014,British Gas,20056547,194.53,National Collections-Historic Properties Department,Electricity
172,DCMS,EH,13/06/2014,British Gas,20056547,181.75,National Collections-Historic Properties Department,Electricity
173,DCMS,EH,13/06/2014,British Gas,20056547,233.16,National Collections-Historic Properties Department,Electricity
174,DCMS,EH,13/06/2014,British Gas,20056547,38.12,National Collections-Historic Properties Department,Electricity
175,DCMS,EH,13/06/2014,British Gas,20056547,10.07,National Collections-Historic Properties Department,Electricity
176,DCMS,EH,13/06/2014,British Gas,20056547,235.2,National Collections-Historic Properties Department,Electricity
177,DCMS,EH,13/06/2014,British Gas,20056547,13.28,National Collections-Historic Properties Department,Electricity
178,DCMS,EH,13/06/2014,British Gas,20056547,59.22,National Collections-Historic Properties Department,Electricity
179,DCMS,EH,13/06/2014,British Gas,20056547,115.49,National Collections-Historic Properties Department,Electricity
180,DCMS,EH,13/06/2014,British Gas,20056547,360.88,National Collections-Historic Properties Department,Electricity
181,DCMS,EH,13/06/2014,British Gas,20056547,15.2,National Collections-Historic Properties Department,Electricity
182,DCMS,EH,13/06/2014,British Gas,20056547,149.11,National Collections-Historic Properties Department,Electricity
183,DCMS,EH,13/06/2014,British Gas,20056547,10.92,National Collections-Historic Properties Department,Electricity
184,DCMS,EH,13/06/2014,British Gas,20056547,64.97,National Collections-Historic Properties Department,Electricity
185,DCMS,EH,13/06/2014,British Gas,20056547,321.19,Heritage Protection & Planning-Nat. Planning & Conservation,Electricity
186,DCMS,EH,13/06/2014,British Gas,20056547,302.1,National Collections-Historic Properties Department,Electricity
187,DCMS,EH,13/06/2014,British Gas,20056547,378.5,Heritage Protection & Planning-Nat. Planning & Conservation,Electricity
188,DCMS,EH,13/06/2014,British Gas,20056547,677.93,National Collections-Historic Properties Department,Electricity
189,DCMS,EH,13/06/2014,British Gas,20056547,13.81,National Collections-Historic Properties Department,Electricity
190,DCMS,EH,13/06/2014,British Gas,20056547,11.06,National Collections-Historic Properties Department,Electricity
191,DCMS,EH,13/06/2014,British Gas,20056547,517.57,National Collections-Historic Properties Department,Electricity
192,DCMS,EH,13/06/2014,British Gas,20056547,14.63,National Collections-Historic Properties Department,Electricity
193,DCMS,EH,13/06/2014,British Gas,20056547,13.79,National Collections-Historic Properties Department,Electricity
194,DCMS,EH,13/06/2014,British Gas,20056547,82.54,National Collections-Historic Properties Department,Electricity
195,DCMS,EH,13/06/2014,British Gas,20056547,255.04,National Collections-Historic Properties Department,Electricity
196,DCMS,EH,13/06/2014,British Gas,20056547,18.99,National Collections-Historic Properties Department,Electricity
197,DCMS,EH,13/06/2014,British Gas,20056547,16.87,National Collections-Historic Properties Department,Electricity
198,DCMS,EH,13/06/2014,British Gas,20056547,96.17,National Collections-Historic Properties Department,Electricity
199,DCMS,EH,13/06/2014,British Gas,20056547,11.76,National Collections-Historic Properties Department,Electricity
200,DCMS,EH,13/06/2014,British Gas,20056547,-207.92,National Collections-Historic Properties Department,Electricity
201,DCMS,EH,13/06/2014,British Gas,20056547,"-1,286.27",National Collections-Historic Properties Department,Electricity
202,DCMS,EH,13/06/2014,British Gas,20056547,965.99,National Collections-Historic Properties Department,Electricity
203,DCMS,EH,13/06/2014,British Gas,20056547,-212.22,National Collections-Historic Properties Department,Electricity
204,DCMS,EH,13/06/2014,British Gas,20056547,258.79,National Collections-Historic Properties Department,Electricity
205,DCMS,EH,13/06/2014,British Gas,20056547,206.93,National Collections-Historic Properties Department,Electricity
206,DCMS,EH,13/06/2014,British Gas,20056547,40.82,National Collections-Historic Properties Department,Electricity
207,DCMS,EH,13/06/2014,British Gas,20056547,"3,574.86",National Collections-Historic Properties Department,Electricity
208,DCMS,EH,13/06/2014,British Gas,20056547,89.32,National Collections-Historic Properties Department,Electricity
209,DCMS,EH,13/06/2014,British Gas,20056547,14.01,National Collections-Historic Properties Department,Electricity
210,DCMS,EH,13/06/2014,British Gas,20056547,14.02,National Collections-Historic Properties Department,Electricity
211,DCMS,EH,13/06/2014,British Gas,20056547,304.22,National Collections-Historic Properties Department,Electricity
212,DCMS,EH,13/06/2014,British Gas,20056547,85.97,National Collections-Historic Properties Department,Electricity
213,DCMS,EH,13/06/2014,British Gas,20056547,76,National Collections-Historic Properties Department,Electricity
214,DCMS,EH,13/06/2014,British Gas,20056547,213.28,National Collections-Historic Properties Department,Electricity
215,DCMS,EH,13/06/2014,British Gas,20056547,16.75,National Collections-Historic Properties Department,Electricity
216,DCMS,EH,13/06/2014,British Gas,20056547,11.76,National Collections-Historic Properties Department,Electricity
217,DCMS,EH,13/06/2014,British Gas,20056547,55.64,National Collections-Historic Properties Department,Electricity
218,DCMS,EH,30/06/2014,British Telecom,40069380,"11,116.92",Resources-IMT,Telephone and Communications
219,DCMS,EH,09/06/2014,Brochure Connect Ltd,40066934,"4,344.00",National Collections-Marketing,Marketing Distribution
220,DCMS,EH,09/06/2014,Brochure Connect Ltd,40066934,"1,176.00",National Collections-Marketing,Marketing Distribution
221,DCMS,EH,09/06/2014,Brochure Connect Ltd,40066934,"1,388.40",National Collections-Marketing,Marketing Distribution
222,DCMS,EH,09/06/2014,Brochure Connect Ltd,40066934,"4,788.00",National Collections-Marketing,Marketing Distribution
223,DCMS,EH,09/06/2014,Brochure Connect Ltd,40066934,"4,143.60",National Collections-Marketing,Marketing Distribution
224,DCMS,EH,09/06/2014,Brochure Connect Ltd,40066934,720,National Collections-Marketing,Marketing Distribution
225,DCMS,EH,16/06/2014,Butler Tanner and Dennis Ltd,40067222,"15,470.00",Heritage Protection & Planning-Heritage Protect & Plng Cent,Publications WIP
226,DCMS,EH,03/06/2014,C G Godfrey Ltd,40067200,"164,400.00",National Collections-Major Conservation Projects,WIP Operational Building Works
227,DCMS,EH,25/06/2014,C G Godfrey Ltd,40069582,"26,566.50",National Collections-Major Conservation Projects,WIP Operational Building Works
228,DCMS,EH,09/06/2014,Cambeck Hill Farm,90513900,"11,125.00",Heritage Protection & Planning-Nat. Planning & Conservation,GRANTS PAYABLE OTHER GRANTS
229,DCMS,EH,03/06/2014,Capita Secure Information Solutions Ltd,40065536,"251,116.75",Resources-IMT,ITFM
230,DCMS,EH,09/06/2014,Capita Secure Information Solutions Ltd,40067647,"38,896.06",Resources-IMT,Computer Equipment <10k
231,DCMS,EH,24/06/2014,Capita Secure Information Solutions Ltd,40068358,"34,073.98",Resources-IMT,ITFM
232,DCMS,EH,24/06/2014,Capita Secure Information Solutions Ltd,40068359,"34,073.98",Resources-IMT,ITFM
233,DCMS,EH,17/06/2014,Capita Secure Information Solutions Ltd,40068360,"34,073.98",Resources-IMT,ITFM
234,DCMS,EH,30/06/2014,Capita Secure Information Solutions Ltd,40068533,"251,116.75",Resources-IMT,ITFM
235,DCMS,EH,06/06/2014,Carisbrooke Castle Museum Trust,40068006,"26,417.00",National Collections-Historic Properties Department,Income Sharing Agreement
236,DCMS,EH,23/06/2014,Caroe and Partners,40067609,"12,000.00",National Collections-Property Maintenance Programme,Planned Maintenance
237,DCMS,EH,26/06/2014,Castle Howard Estate Ltd,82003033,"127,631.00",Heritage Protection & Planning-Nat. Planning & Conservation,GRANTS PAYABLE HISTORIC BUILDINGS
238,DCMS,EH,16/06/2014,CB Richard Ellis Ltd,40068313,"79,175.00",Resources-Office Estate,Rent - Operating Leases
239,DCMS,EH,16/06/2014,CB Richard Ellis Ltd,40068313,"31,162.00",Resources-Office Estate,Building Service Charges
240,DCMS,EH,16/06/2014,CB Richard Ellis Ltd,40068314,"82,481.00",Resources-Office Estate,Building Service Charges
241,DCMS,EH,16/06/2014,CB Richard Ellis Ltd,40068314,"235,500.00",Resources-Office Estate,Rent - Operating Leases
242,DCMS,EH,12/06/2014,Childs & Sulzmann Architects,40068451,"10,221.48",National Collections-Capital Investment Programme,Fees for Professional Advice
243,DCMS,EH,26/06/2014,Christ Church Sowerby Bridge PCC,82003019,"32,000.00",Heritage Protection & Planning-Nat. Planning & Conservation,GRANTS PAYABLE PLACES OF WORSHIP
244,DCMS,EH,17/06/2014,City Of Stoke On Trent,81002983,"13,800.00",Heritage Protection & Planning-Heritage Protection,ENABLING PROGRAMMES ENABLING PROGRAMMES
245,DCMS,EH,24/06/2014,Coulson Group Ltd,40068507,"23,613.00",National Collections-Capital Investment Programme,WIP Refurbishment Works
246,DCMS,EH,06/06/2014,Cullompton Walronds Preserv Trust,82002964,"15,000.00",Heritage Protection & Planning-Nat. Planning & Conservation,GRANTS PAYABLE HISTORIC BUILDINGS
247,DCMS,EH,06/06/2014,Cullompton Walronds Preserv Trust,82002965,"42,900.00",Heritage Protection & Planning-Nat. Planning & Conservation,GRANTS PAYABLE HISTORIC BUILDINGS
248,DCMS,EH,25/06/2014,Derby City Council,90513914,"14,960.00",Heritage Protection & Planning-Nat. Planning & Conservation,GRANTS PAYABLE AREA
249,DCMS,EH,25/06/2014,Derby City Council,90513915,"44,402.00",Heritage Protection & Planning-Nat. Planning & Conservation,GRANTS PAYABLE AREA
250,DCMS,EH,13/06/2014,Derngate Estates,40068552,"12,400.00",Resources-Office Estate,Rent - Operating Leases
251,DCMS,EH,02/06/2014,DJH (Group) Ltd,1083707,"12,464.83",National Collections-Historic Properties Department,Goods & Souvenirs Purchases
252,DCMS,EH,30/06/2014,Dorset County Council,40067950,"38,544.60",National Collections-Capital Investment Programme,WIP Professional Works Advice
253,DCMS,EH,11/06/2014,Dorset County Council,40067969,"21,180.40",National Collections-Capital Investment Programme,WIP Professional Works Advice
254,DCMS,EH,24/06/2014,DST Output (London) Limited,40067350,"168,043.87",National Collections-Marketing,Marketing Distribution
255,DCMS,EH,24/06/2014,East Sussex County Council,90513912,"23,879.49",Heritage Protection & Planning-Nat. Planning & Conservation,GRANTS PAYABLE OTHER GRANTS
256,DCMS,EH,06/06/2014,Eden Brown Ltd,20056236,"10,185.00",National Collections-Head of Estates,Fees for Professional Advice
257,DCMS,EH,27/06/2014,EDF,20057116,"26,034.52",Resources-Corporate,Electricity
258,DCMS,EH,27/06/2014,EDF,20057117,"15,751.60",Resources-Corporate,Electricity
259,DCMS,EH,26/06/2014,Emley Parish Church Account,82003031,"54,450.00",Heritage Protection & Planning-Nat. Planning & Conservation,GRANTS PAYABLE PLACES OF WORSHIP
260,DCMS,EH,12/06/2014,Europa Facilities Management Limited,40066585,"1,483.46",Resources-Human Resources,Annual Cyclical Work M & E
261,DCMS,EH,12/06/2014,Europa Facilities Management Limited,40066585,"2,960.21",Resources-Human Resources,Office Security & Cash Collect
262,DCMS,EH,12/06/2014,Europa Facilities Management Limited,40066585,"3,625.15",Resources-Human Resources,Office Cleaning
263,DCMS,EH,12/06/2014,Europa Facilities Management Limited,40066585,"2,137.38",Resources-Human Resources,Annual Cyclical Works-Building
264,DCMS,EH,12/06/2014,Europa Facilities Management Limited,40066585,192.94,Resources-Human Resources,Annual Cyclical Works-Building
265,DCMS,EH,06/06/2014,Europa Facilities Management Limited,40066843,"10,628.48",Resources-Human Resources,Office Cleaning
266,DCMS,EH,06/06/2014,Europa Facilities Management Limited,40066843,"6,236.70",Resources-Human Resources,Office Security & Cash Collect
267,DCMS,EH,06/06/2014,Europa Facilities Management Limited,40066843,"5,763.00",Resources-Human Resources,Annual Cyclical Works-Building
268,DCMS,EH,06/06/2014,Europa Facilities Management Limited,40066843,192.94,Resources-Human Resources,Annual Cyclical Works-Building
269,DCMS,EH,06/06/2014,Europa Facilities Management Limited,40066843,"9,765.28",Resources-Human Resources,Annual Cyclical Work M & E
270,DCMS,EH,24/06/2014,Europa Facilities Management Limited,40068667,"5,763.00",Resources-Human Resources,Annual Cyclical Works-Building
271,DCMS,EH,24/06/2014,Europa Facilities Management Limited,40068667,"6,236.70",Resources-Human Resources,Office Security & Cash Collect
272,DCMS,EH,24/06/2014,Europa Facilities Management Limited,40068667,"10,628.48",Resources-Human Resources,Office Cleaning
273,DCMS,EH,24/06/2014,Europa Facilities Management Limited,40068667,192.94,Resources-Human Resources,Annual Cyclical Works-Building
274,DCMS,EH,24/06/2014,Europa Facilities Management Limited,40068667,"9,765.28",Resources-Human Resources,Annual Cyclical Work M & E
275,DCMS,EH,16/06/2014,Europa Facilities Management Limited,40068668,"1,483.46",Resources-Human Resources,Annual Cyclical Work M & E
276,DCMS,EH,16/06/2014,Europa Facilities Management Limited,40068668,192.94,Resources-Human Resources,Annual Cyclical Works-Building
277,DCMS,EH,16/06/2014,Europa Facilities Management Limited,40068668,"2,137.38",Resources-Human Resources,Annual Cyclical Works-Building
278,DCMS,EH,16/06/2014,Europa Facilities Management Limited,40068668,"2,960.21",Resources-Human Resources,Office Security & Cash Collect
279,DCMS,EH,16/06/2014,Europa Facilities Management Limited,40068668,"3,625.15",Resources-Human Resources,Office Cleaning
280,DCMS,EH,10/06/2014,Evolve Business Consultancy Ltd,40067478,"10,260.00",Resources-IMT,WIP Computer Consultancy
281,DCMS,EH,10/06/2014,Evolve Business Consultancy Ltd,40068188,"4,704.00",Resources-IMT,Computer Consultancy
282,DCMS,EH,10/06/2014,Evolve Business Consultancy Ltd,40068188,"5,376.00",Resources-IMT,Computer Consultancy
283,DCMS,EH,10/06/2014,Evolve Business Consultancy Ltd,40068188,"4,704.00",Resources-IMT,Computer Consultancy
284,DCMS,EH,10/06/2014,Evolve Business Consultancy Ltd,40068188,"2,403.60",Resources-IMT,Computer Consultancy
285,DCMS,EH,04/06/2014,Experian QAS Ltd,40066327,"15,709.91",National Collections-Marketing,System Developments <50k
286,DCMS,EH,02/06/2014,Extra Digital Limited,40067076,"14,160.00",Resources-IMT,Technical Advisors
287,DCMS,EH,09/06/2014,Fairhurst Ward Abbotts Ltd,40066849,"16,427.40",National Collections-Capital Investment Programme,Works for Heritage Buildings
288,DCMS,EH,12/06/2014,Feilden Clegg Bradley Studios LLP,40067661,"48,018.00",Heritage Protection & Planning-Nat. Planning & Conservation,Commissioned Architects
289,DCMS,EH,12/06/2014,Feilden Clegg Bradley Studios LLP,40068043,"-28,752.00",Heritage Protection & Planning-Nat. Planning & Conservation,Commissioned Architects
290,DCMS,EH,27/06/2014,Fideliti Limited,20057108,10.5,Resources-Human Resources,Childcare Vouchers
291,DCMS,EH,27/06/2014,Fideliti Limited,20057108,"21,866.18",Resources-Corporate,Childcare Vouchers
292,DCMS,EH,04/06/2014,Food Angles Ltd,1083710,"16,425.00",National Collections-Historic Properties Department,Goods & Souvenirs Purchases
293,DCMS,EH,13/06/2014,Frating with Thorrington PCC,82002988,"26,499.00",Heritage Protection & Planning-Nat. Planning & Conservation,GRANTS PAYABLE PLACES OF WORSHIP
294,DCMS,EH,24/06/2014,Gavin Jones Ltd,40067660,483.6,National Collections-Property Maintenance Programme,Annual Cyclical Work Grounds
295,DCMS,EH,24/06/2014,Gavin Jones Ltd,40067660,80.4,National Collections-Property Maintenance Programme,Annual Cyclical Work Grounds
296,DCMS,EH,24/06/2014,Gavin Jones Ltd,40067660,519.3,National Collections-Property Maintenance Programme,Annual Cyclical Work Grounds
297,DCMS,EH,24/06/2014,Gavin Jones Ltd,40067660,413.4,National Collections-Property Maintenance Programme,Annual Cyclical Work Grounds
298,DCMS,EH,24/06/2014,Gavin Jones Ltd,40067660,231.3,National Collections-Property Maintenance Programme,Annual Cyclical Work Grounds
299,DCMS,EH,24/06/2014,Gavin Jones Ltd,40067660,"2,737.20",National Collections-Property Maintenance Programme,Annual Cyclical Work Grounds
300,DCMS,EH,24/06/2014,Gavin Jones Ltd,40067660,"1,948.80",National Collections-Property Maintenance Programme,Annual Cyclical Work Grounds
301,DCMS,EH,24/06/2014,Gavin Jones Ltd,40067660,15.6,National Collections-Property Maintenance Programme,Annual Cyclical Work Grounds
302,DCMS,EH,24/06/2014,Gavin Jones Ltd,40067660,285.9,National Collections-Property Maintenance Programme,Annual Cyclical Work Grounds
303,DCMS,EH,24/06/2014,Gavin Jones Ltd,40067660,48.6,National Collections-Property Maintenance Programme,Annual Cyclical Work Grounds
304,DCMS,EH,24/06/2014,Gavin Jones Ltd,40067660,489,National Collections-Property Maintenance Programme,Annual Cyclical Work Grounds
305,DCMS,EH,24/06/2014,Gavin Jones Ltd,40067660,310.2,National Collections-Property Maintenance Programme,Annual Cyclical Work Grounds
306,DCMS,EH,24/06/2014,Gavin Jones Ltd,40067660,739.2,National Collections-Property Maintenance Programme,Annual Cyclical Work Grounds
307,DCMS,EH,24/06/2014,Gavin Jones Ltd,40067660,231.9,National Collections-Property Maintenance Programme,Annual Cyclical Work Grounds
308,DCMS,EH,24/06/2014,Gavin Jones Ltd,40067660,"1,496.40",National Collections-Property Maintenance Programme,Annual Cyclical Work Grounds
309,DCMS,EH,24/06/2014,Gavin Jones Ltd,40067660,240.6,National Collections-Property Maintenance Programme,Annual Cyclical Work Grounds
310,DCMS,EH,24/06/2014,Gavin Jones Ltd,40067660,346.8,National Collections-Property Maintenance Programme,Annual Cyclical Work Grounds
311,DCMS,EH,24/06/2014,Gavin Jones Ltd,40067660,619.8,National Collections-Property Maintenance Programme,Annual Cyclical Work Grounds
312,DCMS,EH,24/06/2014,Gavin Jones Ltd,40067660,160.2,National Collections-Property Maintenance Programme,Annual Cyclical Work Grounds
313,DCMS,EH,25/06/2014,Go South Coast Ltd,40068844,"16,080.00",National Collections-Historic Properties Department,Plant Equipment & Van Costs
314,DCMS,EH,25/06/2014,Go South Coast Ltd,40068847,"28,140.17",National Collections-Historic Properties Department,Agency Staff
315,DCMS,EH,03/06/2014,Godshill PCC,82002958,"52,500.00",Heritage Protection & Planning-Nat. Planning & Conservation,GRANTS PAYABLE PLACES OF WORSHIP
316,DCMS,EH,06/06/2014,Gorkana Group,40067537,"13,320.00",National Collections-Marketing,Marketing Distribution
317,DCMS,EH,06/06/2014,Grafham PCC,82002979,"54,500.00",Heritage Protection & Planning-Nat. Planning & Conservation,GRANTS PAYABLE PLACES OF WORSHIP
318,DCMS,EH,17/06/2014,Grampus Heritage and Training Ltd,90513910,"14,187.50",Heritage Protection & Planning-Nat. Planning & Conservation,GRANTS PAYABLE OTHER GRANTS
319,DCMS,EH,12/06/2014,Green Balance,40066862,"10,000.00",Heritage Protection & Planning-Heritage Protection,Hist Environ Prog Projects Gra
320,DCMS,EH,18/06/2014,GVA Grimley Ltd,40068042,"9,678.00",Resources-Office Estate,Building Service Charges
321,DCMS,EH,18/06/2014,GVA Grimley Ltd,40068042,"22,747.50",Resources-Office Estate,Rent - Operating Leases
322,DCMS,EH,20/06/2014,Gwennap PCC,82003001,"18,000.00",Heritage Protection & Planning-Nat. Planning & Conservation,GRANTS PAYABLE PLACES OF WORSHIP
323,DCMS,EH,12/06/2014,Harlow Property Management Ltd,40068157,"54,750.00",Resources-Office Estate,Rent - Operating Leases
324,DCMS,EH,03/06/2014,Harsco Infrastructure UK Ltd,40066930,"21,872.56",Heritage Protection & Planning-Nat. Planning & Conservation,Security Guard & Monitor Stati
325,DCMS,EH,04/06/2014,Hatch Brenner LLP,20056221,"14,000.00",National Collections-National Collections Centre,Legal Fees
326,DCMS,EH,20/06/2014,Headland Archaeology (UK) Ltd,40068117,"23,133.53",National Collections-Major Conservation Projects,Works for Heritage Buildings
327,DCMS,EH,05/06/2014,Historic Property Restoration Ltd,40066617,"63,813.06",National Collections-Property Maintenance Programme,Annual Cyclical Works-Building
328,DCMS,EH,05/06/2014,Historic Property Restoration Ltd,40066617,"2,805.79",National Collections-Property Maintenance Programme,Leased Accomodation Maint
329,DCMS,EH,05/06/2014,Historic Property Restoration Ltd,40066617,674.45,National Collections-Property Maintenance Programme,Annual Cyclical Work M & E
330,DCMS,EH,05/06/2014,Historic Property Restoration Ltd,40066617,"52,072.03",National Collections-Property Maintenance Programme,Annual Cyclical Work M & E
331,DCMS,EH,05/06/2014,Historic Property Restoration Ltd,40066617,"13,813.13",National Collections-Property Maintenance Programme,Annual Cyclical Works-Building
332,DCMS,EH,05/06/2014,Historic Property Restoration Ltd,40066618,"6,896.72",National Collections-Property Maintenance Programme,Planned Maintenance
333,DCMS,EH,05/06/2014,Historic Property Restoration Ltd,40066618,"6,497.33",National Collections-Property Maintenance Programme,Responsive Maint Building
334,DCMS,EH,05/06/2014,Historic Property Restoration Ltd,40066618,"1,309.76",National Collections-Property Maintenance Programme,Responsive Maint Building
335,DCMS,EH,05/06/2014,Historic Property Restoration Ltd,40066618,"16,335.19",National Collections-Property Maintenance Programme,Responsive Repairs M & E
336,DCMS,EH,05/06/2014,Historic Property Restoration Ltd,40066618,494.74,National Collections-Property Maintenance Programme,Leased Accomodation Maint
337,DCMS,EH,16/06/2014,Ice Cream World Ltd,40065854,"26,528.17",National Collections-Historic Properties Department,Ice Cream Purchases
338,DCMS,EH,06/06/2014,Ingham PCC,82002967,"21,000.00",Heritage Protection & Planning-Nat. Planning & Conservation,GRANTS PAYABLE PLACES OF WORSHIP
339,DCMS,EH,06/06/2014,Ingham PCC,82002968,"19,000.00",Heritage Protection & Planning-Nat. Planning & Conservation,GRANTS PAYABLE PLACES OF WORSHIP
340,DCMS,EH,10/06/2014,ISS Facility Services Ltd - Security,40067258,"10,915.81",National Collections-Curatorial Department,Security Guard & Monitor Stati
341,DCMS,EH,16/06/2014,ISS Facility Services Ltd - Security,40067261,"17,181.62",National Collections-Property Maintenance Programme,Security Guard & Monitor Stati
342,DCMS,EH,23/06/2014,ISS Facility Services Ltd - Security,40067263,738.72,National Collections-Property Maintenance Programme,Security Guard & Monitor Stati
343,DCMS,EH,23/06/2014,ISS Facility Services Ltd - Security,40067263,"22,763.53",National Collections-Property Maintenance Programme,Security Guard & Monitor Stati
344,DCMS,EH,27/06/2014,ISS Facility Services Ltd - Security,40069522,"23,502.25",National Collections-Property Maintenance Programme,Security Guard & Monitor Stati
345,DCMS,EH,24/06/2014,Jeremy Benn Associates Ltd,40069508,"10,000.00",Heritage Protection & Planning-Heritage Protection,Hist Environ Prog Projects Gra
346,DCMS,EH,26/06/2014,K3 Retail & Business Solutions,40066584,"20,682.00",Resources-IMT,WIP Systems Development
347,DCMS,EH,26/06/2014,K3 Retail & Business Solutions,40066584,164.34,Resources-IMT,Travel
348,DCMS,EH,26/06/2014,K3 Retail & Business Solutions,40066584,642,Resources-IMT,Computer Consultancy
349,DCMS,EH,18/06/2014,K3 Retail & Business Solutions,40069030,"77,940.00",Resources-IMT,Equipment <10k
350,DCMS,EH,23/06/2014,K3 Retail & Business Solutions,40069172,"84,572.27",Resources-IMT,Software Maintenance
351,DCMS,EH,18/06/2014,Knight Frank LLP,40068779,"45,353.70",Resources-Office Estate,Rent - Operating Leases
352,DCMS,EH,18/06/2014,Knight Frank LLP,40068779,"20,290.85",Resources-Office Estate,Building Service Charges
353,DCMS,EH,20/06/2014,Layham PCC,82003002,"16,500.00",Heritage Protection & Planning-Nat. Planning & Conservation,GRANTS PAYABLE PLACES OF WORSHIP
354,DCMS,EH,04/06/2014,Lorne Stewart plc,40066554,"22,306.61",National Collections-Property Maintenance Programme,Annual Cyclical Work M & E
355,DCMS,EH,20/06/2014,Lowther Castle & Gardens Trust,82002995,"133,000.00",Heritage Protection & Planning-Nat. Planning & Conservation,GRANTS PAYABLE HISTORIC BUILDINGS
356,DCMS,EH,03/06/2014,Lyng PCC,82002953,"17,500.00",Heritage Protection & Planning-Nat. Planning & Conservation,GRANTS PAYABLE PLACES OF WORSHIP
357,DCMS,EH,03/06/2014,Lyng PCC,82002954,"26,148.00",Heritage Protection & Planning-Nat. Planning & Conservation,GRANTS PAYABLE PLACES OF WORSHIP
358,DCMS,EH,26/06/2014,M and M Contractors,40068697,"14,894.26",National Collections-Property Maintenance Programme,Annual Cyclical Work Grounds
359,DCMS,EH,24/06/2014,Mail Marketing Scotland Ltd,40069332,"25,451.76",National Collections-Marketing,Postage & Couriers
360,DCMS,EH,24/06/2014,Mail Marketing Scotland Ltd,40069460,"18,637.30",National Collections-Marketing,Postage & Couriers
361,DCMS,EH,30/06/2014,Malavan Media Ltd,40069257,"15,600.00",Heritage Protection & Planning-Heritage Protect & Plng Cent,Publications WIP
362,DCMS,EH,24/06/2014,Mason Owen and Partners (Rent only),40068551,372,Resources-Office Estate,Rent - Operating Leases
363,DCMS,EH,24/06/2014,Mason Owen and Partners (Rent only),40068551,"4,881.60",Resources-Office Estate,Building Service Charges
364,DCMS,EH,24/06/2014,Mason Owen and Partners (Rent only),40068551,203.4,Resources-Office Estate,Building Service Charges
365,DCMS,EH,24/06/2014,Mason Owen and Partners (Rent only),40068551,"14,070.00",Resources-Office Estate,Rent - Operating Leases
366,DCMS,EH,13/06/2014,Michael Hall School,82002986,"37,500.00",Heritage Protection & Planning-Nat. Planning & Conservation,GRANTS PAYABLE HISTORIC BUILDINGS
367,DCMS,EH,26/06/2014,Michael Hall School,82003021,"37,500.00",Heritage Protection & Planning-Nat. Planning & Conservation,GRANTS PAYABLE HISTORIC BUILDINGS
368,DCMS,EH,12/06/2014,Micros Systems UK Limited,40068093,"23,678.76",Resources-IMT,Software Maintenance
369,DCMS,EH,04/06/2014,Midland Software Ltd,40067382,"12,549.60",Resources-IMT,Software Maintenance
370,DCMS,EH,25/06/2014,"Minster Church of St George, Doncaster",90513913,"18,248.00",Heritage Protection & Planning-Nat. Planning & Conservation,GRANTS PAYABLE OTHER GRANTS
371,DCMS,EH,24/06/2014,Mount St Mary's Trust,82003008,"34,552.00",Heritage Protection & Planning-Nat. Planning & Conservation,GRANTS PAYABLE HISTORIC BUILDINGS
372,DCMS,EH,20/06/2014,Mountjoy Ltd,40067611,"70,208.00",National Collections-Capital Investment Programme,Works for Heritage Buildings
373,DCMS,EH,20/06/2014,Mountjoy Ltd,40067611,"11,692.00",National Collections-Capital Investment Programme,WIP Operational Building Works
374,DCMS,EH,20/06/2014,Munslow Parochial Church Council,82003000,"48,000.00",Heritage Protection & Planning-Nat. Planning & Conservation,GRANTS PAYABLE PLACES OF WORSHIP
375,DCMS,EH,24/06/2014,Nijhuis H20K Ltd,40067616,"14,749.46",National Collections-Property Maintenance Programme,Annual Cyclical Work M & E
376,DCMS,EH,16/06/2014,Northumberland County Council,90513906,"39,620.00",Heritage Protection & Planning-Nat. Planning & Conservation,GRANTS PAYABLE AREA
377,DCMS,EH,16/06/2014,Northumberland County Council,90513907,"32,448.00",Heritage Protection & Planning-Nat. Planning & Conservation,GRANTS PAYABLE AREA
378,DCMS,EH,16/06/2014,Northumberland County Council,90513908,"40,241.00",Heritage Protection & Planning-Nat. Planning & Conservation,GRANTS PAYABLE AREA
379,DCMS,EH,16/06/2014,Northumberland County Council,90513909,"34,780.00",Heritage Protection & Planning-Nat. Planning & Conservation,GRANTS PAYABLE AREA
380,DCMS,EH,09/06/2014,Nu-Weld Engineering Services Ltd,40067581,"30,113.48",National Collections-Capital Investment Programme,WIP Operational Building Works
381,DCMS,EH,26/06/2014,Old Bucklenham PCC,82003028,"30,000.00",Heritage Protection & Planning-Nat. Planning & Conservation,GRANTS PAYABLE PLACES OF WORSHIP
382,DCMS,EH,13/06/2014,Overgrass Tower House,82002991,"10,629.00",Heritage Protection & Planning-Nat. Planning & Conservation,GRANTS PAYABLE HISTORIC BUILDINGS
383,DCMS,EH,25/06/2014,Owlsworth IJP LTD,40068608,"51,006.55",Heritage Protection & Planning-Nat. Planning & Conservation,Works for Heritage Buildings
384,DCMS,EH,06/06/2014,Panxworth PCC,82002974,"32,000.00",Heritage Protection & Planning-Nat. Planning & Conservation,GRANTS PAYABLE HISTORIC BUILDINGS
385,DCMS,EH,06/06/2014,Parishes of Kentish Town,82002972,"50,359.00",Heritage Protection & Planning-Nat. Planning & Conservation,GRANTS PAYABLE PLACES OF WORSHIP
386,DCMS,EH,18/06/2014,Park Communications Ltd,40068120,"13,118.00",Heritage Protection & Planning-Heritage Protect & Plng Cent,Finished Guidebooks
387,DCMS,EH,26/06/2014,Parochial Church Council of High Halden,82003022,"17,600.00",Heritage Protection & Planning-Nat. Planning & Conservation,GRANTS PAYABLE PLACES OF WORSHIP
388,DCMS,EH,06/06/2014,Parochial Church Council of Leadenham,82002969,"25,205.00",Heritage Protection & Planning-Nat. Planning & Conservation,GRANTS PAYABLE PLACES OF WORSHIP
389,DCMS,EH,16/06/2014,Past Pleasures Ltd,40068098,"23,960.40",National Collections-Historic Properties Department,Exhibits/Displays
390,DCMS,EH,26/06/2014,PCC  Of Wath Upon Dearne,82003024,"46,500.00",Heritage Protection & Planning-Nat. Planning & Conservation,GRANTS PAYABLE PLACES OF WORSHIP
391,DCMS,EH,26/06/2014,PCC for Parish of South Normanton,82003027,"12,500.00",Heritage Protection & Planning-Nat. Planning & Conservation,GRANTS PAYABLE PLACES OF WORSHIP
392,DCMS,EH,06/06/2014,PCC Mosterton,82002970,"11,000.00",Heritage Protection & Planning-Nat. Planning & Conservation,GRANTS PAYABLE PLACES OF WORSHIP
393,DCMS,EH,06/06/2014,PCC of Church of the Epiphany,82002978,"75,526.00",Heritage Protection & Planning-Nat. Planning & Conservation,GRANTS PAYABLE PLACES OF WORSHIP
394,DCMS,EH,06/06/2014,PCC of Kilmersdon & Babington,82002977,"44,000.00",Heritage Protection & Planning-Nat. Planning & Conservation,GRANTS PAYABLE PLACES OF WORSHIP
395,DCMS,EH,26/06/2014,PCC of Sellack Parish,82003023,"31,000.00",Heritage Protection & Planning-Nat. Planning & Conservation,GRANTS PAYABLE PLACES OF WORSHIP
396,DCMS,EH,20/06/2014,PCC of St Pauls Church,82003003,"64,000.00",Heritage Protection & Planning-Nat. Planning & Conservation,GRANTS PAYABLE PLACES OF WORSHIP
397,DCMS,EH,26/06/2014,PCC of Thrybergh St Leonard's,82003025,"22,473.00",Heritage Protection & Planning-Nat. Planning & Conservation,GRANTS PAYABLE PLACES OF WORSHIP
398,DCMS,EH,13/06/2014,PCC St Luke's Church,82002987,"87,500.00",Heritage Protection & Planning-Nat. Planning & Conservation,GRANTS PAYABLE PLACES OF WORSHIP
399,DCMS,EH,24/06/2014,Preston Seventh Day Adventist Church,82003005,"42,800.00",Heritage Protection & Planning-Nat. Planning & Conservation,GRANTS PAYABLE PLACES OF WORSHIP
400,DCMS,EH,10/06/2014,Quadron Services Ltd,40067645,"34,482.00",National Collections-Property Maintenance Programme,Planned Maintenance
401,DCMS,EH,09/06/2014,Quadron Services Ltd,40067839,"19,785.08",National Collections-Property Maintenance Programme,Annual Cyclical Works-Building
402,DCMS,EH,09/06/2014,Quadron Services Ltd,40067839,"5,277.26",National Collections-Property Maintenance Programme,Annual Cyclical Works-Building
403,DCMS,EH,09/06/2014,Quadron Services Ltd,40067839,"7,222.48",National Collections-Property Maintenance Programme,Annual Cyclical Works-Building
404,DCMS,EH,24/06/2014,R Moulding and Co Salisbury Ltd,40069402,"26,168.44",National Collections-Property Maintenance Programme,Annual Cyclical Works-Building
405,DCMS,EH,24/06/2014,Raithby with Hallington PCC,82003010,"21,500.00",Heritage Protection & Planning-Nat. Planning & Conservation,GRANTS PAYABLE PLACES OF WORSHIP
406,DCMS,EH,09/06/2014,Ratcliffes,40067888,"283,500.00",Resources-Office Estate,Rent - Operating Leases
407,DCMS,EH,17/06/2014,Recclesia Ltd,40065184,"21,410.28",National Collections-Property Maintenance Programme,Planned Maintenance
408,DCMS,EH,03/06/2014,Rector and Churchwardens of Badgworth,82002955,"42,000.00",Heritage Protection & Planning-Nat. Planning & Conservation,GRANTS PAYABLE PLACES OF WORSHIP
409,DCMS,EH,26/06/2014,Rockland St Mary with Hellington PCC,82003030,"14,800.00",Heritage Protection & Planning-Nat. Planning & Conservation,GRANTS PAYABLE PLACES OF WORSHIP
410,DCMS,EH,20/06/2014,Scarning PCC,82002997,"61,000.00",Heritage Protection & Planning-Nat. Planning & Conservation,GRANTS PAYABLE PLACES OF WORSHIP
411,DCMS,EH,04/06/2014,Scottish Widows,20056104,"18,345.07",Resources-Corporate,Pensions
412,DCMS,EH,26/06/2014,Scottish Widows,20057058,"19,000.68",Resources-Corporate,Pensions
413,DCMS,EH,03/06/2014,Shoosmiths,40062637,"15,233.04",National Collections-National Collections Centre,Legal Fees
414,DCMS,EH,09/06/2014,Shoosmiths,40062641,"18,000.00",National Collections-National Collections Centre,Legal Fees
415,DCMS,EH,26/06/2014,Shropshire Mines Trust Ltd,82003034,"33,014.00",Heritage Protection & Planning-Nat. Planning & Conservation,GRANTS PAYABLE HISTORIC BUILDINGS
416,DCMS,EH,26/06/2014,"St James' Church, Wigmore Abbey PCC",82003016,"19,000.00",Heritage Protection & Planning-Nat. Planning & Conservation,GRANTS PAYABLE PLACES OF WORSHIP
417,DCMS,EH,26/06/2014,St John the Evangelist PCC,82003032,"47,750.00",Heritage Protection & Planning-Nat. Planning & Conservation,GRANTS PAYABLE PLACES OF WORSHIP
418,DCMS,EH,26/06/2014,St Mary's Church Northiam,82003029,"37,500.00",Heritage Protection & Planning-Nat. Planning & Conservation,GRANTS PAYABLE PLACES OF WORSHIP
419,DCMS,EH,26/06/2014,St Peter's PCC,82003026,"74,000.00",Heritage Protection & Planning-Nat. Planning & Conservation,GRANTS PAYABLE PLACES OF WORSHIP
420,DCMS,EH,20/06/2014,St Stephen and All Martyrs PCC,82003004,"69,231.00",Heritage Protection & Planning-Nat. Planning & Conservation,GRANTS PAYABLE PLACES OF WORSHIP
421,DCMS,EH,05/06/2014,STM Security Group  UK Ltd,40064378,"11,326.46",National Collections-Property Maintenance Programme,Security Guard & Monitor Stati
422,DCMS,EH,05/06/2014,STM Security Group  UK Ltd,40067548,"23,316.02",National Collections-Property Maintenance Programme,Security Guard & Monitor Stati
423,DCMS,EH,16/06/2014,STM Security Group  UK Ltd,40067549,"11,680.42",National Collections-Property Maintenance Programme,Security Guard & Monitor Stati
424,DCMS,EH,25/06/2014,The National Trust Wiltshire,40065644,"-39,633.56",National Collections-Historic Properties Department,Rent - Operating Leases
425,DCMS,EH,20/06/2014,The National Trust Wiltshire,40065753,"40,036.96",National Collections-Historic Properties Department,Rent - Operating Leases
426,DCMS,EH,20/06/2014,The National Trust Wiltshire,40065753,"16,083.91",National Collections-Historic Properties Department,Rent - Operating Leases
427,DCMS,EH,04/06/2014,The Other Media Limited,40067201,"12,000.00",National Advice & Information-Communications Department,System Developments <50k
428,DCMS,EH,18/06/2014,The Team Brand Communication Consultants,40067655,"13,467.36",Resources-IMT,System Developments <50k
429,DCMS,EH,10/06/2014,The Times of Their Lives - French Module,81002979,"12,165.00",Heritage Protection & Planning-Heritage Protection,ENABLING PROGRAMMES ENABLING PROGRAMMES
430,DCMS,EH,03/06/2014,Thornton-le-Moors with Ince & Elton ECC,82002957,"19,000.00",Heritage Protection & Planning-Nat. Planning & Conservation,GRANTS PAYABLE PLACES OF WORSHIP
431,DCMS,EH,26/06/2014,Tilton Parochial Church Council,82003013,"22,500.00",Heritage Protection & Planning-Nat. Planning & Conservation,GRANTS PAYABLE PLACES OF WORSHIP
432,DCMS,EH,05/06/2014,Todd Contracting,40067373,"11,945.71",National Collections-Property Maintenance Programme,Annual Cyclical Work Grounds
433,DCMS,EH,17/06/2014,Treasure and Son,40067626,"7,738.30",National Collections-Property Maintenance Programme,Annual Cyclical Works-Building
434,DCMS,EH,17/06/2014,Treasure and Son,40067626,"4,531.44",National Collections-Property Maintenance Programme,Annual Cyclical Works-Building
435,DCMS,EH,17/06/2014,Treasure and Son,40067626,202.71,National Collections-Property Maintenance Programme,Leased Accomodation Maint
436,DCMS,EH,30/06/2014,Turfsoil Limited,40067583,76.5,National Collections-Property Maintenance Programme,Annual Cyclical Work Grounds
437,DCMS,EH,30/06/2014,Turfsoil Limited,40067583,906.6,National Collections-Property Maintenance Programme,Annual Cyclical Work Grounds
438,DCMS,EH,30/06/2014,Turfsoil Limited,40067583,"13,293.00",National Collections-Property Maintenance Programme,Annual Cyclical Work Grounds
439,DCMS,EH,30/06/2014,Turfsoil Limited,40067583,475.5,National Collections-Property Maintenance Programme,Annual Cyclical Work Grounds
440,DCMS,EH,30/06/2014,Turfsoil Limited,40067583,98.1,National Collections-Property Maintenance Programme,Annual Cyclical Work Grounds
441,DCMS,EH,30/06/2014,Turfsoil Limited,40067583,209.1,National Collections-Property Maintenance Programme,Annual Cyclical Work Grounds
442,DCMS,EH,30/06/2014,Turfsoil Limited,40067583,"1,537.87",National Collections-Property Maintenance Programme,Annual Cyclical Work Grounds
443,DCMS,EH,30/06/2014,Turfsoil Limited,40067583,"1,363.80",National Collections-Property Maintenance Programme,Annual Cyclical Work Grounds
444,DCMS,EH,26/06/2014,Vectis Car Hire Ltd,40068301,"9,885.00",National Collections-Historic Properties Department,RO Management Agreement
445,DCMS,EH,26/06/2014,Vectis Car Hire Ltd,40068301,"4,320.00",National Collections-Historic Properties Department,RO Management Agreement
446,DCMS,EH,05/06/2014,Vector Resourcing Ltd,40067728,"10,530.00",Resources-IMT,Agency Staff
447,DCMS,EH,06/06/2014,Vicar & Churchwardens of Little,82002975,"33,500.00",Heritage Protection & Planning-Nat. Planning & Conservation,GRANTS PAYABLE PLACES OF WORSHIP
448,DCMS,EH,19/06/2014,Vinci Construction UK Ltd,40069160,177.6,National Collections-Capital Investment Programme,Works for Heritage Buildings
449,DCMS,EH,19/06/2014,Vinci Construction UK Ltd,40069160,"1,104.00",National Collections-Capital Investment Programme,WIP Operational Building Works
450,DCMS,EH,19/06/2014,Vinci Construction UK Ltd,40069160,"28,077.60",National Collections-Capital Investment Programme,WIP Operational Building Works
451,DCMS,EH,19/06/2014,Vinci Construction UK Ltd,40069160,"1,159.20",National Collections-Capital Investment Programme,Works for Heritage Buildings
452,DCMS,EH,19/06/2014,Vinci Construction UK Ltd,40069160,"13,504.80",National Collections-Capital Investment Programme,WIP Operational Building Works
453,DCMS,EH,19/06/2014,Vinci Construction UK Ltd,40069160,"59,606.40",National Collections-Capital Investment Programme,WIP Professional Works Advice
454,DCMS,EH,19/06/2014,Vinci Construction UK Ltd,40069160,"41,325.60",National Collections-Capital Investment Programme,Works for Heritage Buildings
455,DCMS,EH,10/06/2014,Virgin Media,40068199,"12,401.43",Resources-IMT,Telephone and Communications
456,DCMS,EH,10/06/2014,Virgin Media,40068204,"12,355.90",Resources-IMT,Telephone and Communications
457,DCMS,EH,26/06/2014,Vodafone Corporate Ltd,20057069,"85,449.68",Resources-Corporate,Mobile Phone Costs
458,DCMS,EH,09/06/2014,Wessex Archaeology,40065473,"82,475.50",Heritage Protection & Planning-Heritage Protection,Hist Environ Prog Projects Gra
459,DCMS,EH,13/06/2014,Whinburgh and Westfield PCC,82002985,"16,720.00",Heritage Protection & Planning-Nat. Planning & Conservation,GRANTS PAYABLE PLACES OF WORSHIP
460,DCMS,EH,03/06/2014,William Anelay Limited,40067359,"110,020.80",Heritage Protection & Planning-Nat. Planning & Conservation,Works for Heritage Buildings
461,DCMS,EH,20/06/2014,William Birch & Sons Ltd,40067443,"14,225.76",National Collections-Capital Investment Programme,WIP Operational Building Works
462,DCMS,EH,20/06/2014,William Birch & Sons Ltd,40067443,"28,151.45",National Collections-Capital Investment Programme,WIP Operational Building Works
463,DCMS,EH,06/06/2014,Wiltshire Council,81002974,"10,000.00",Heritage Protection & Planning-Heritage Protection,ENABLING PROGRAMMES ENABLING PROGRAMMES
464,DCMS,EH,03/06/2014,Worldwide Flags Ltd,60002648,"22,464.00",National Collections-Historic Properties Department,Goods & Souvenirs Purchases
465,DCMS,EH,03/06/2014,Wycliffe Congregational Church,82002963,"96,000.00",Heritage Protection & Planning-Nat. Planning & Conservation,GRANTS PAYABLE PLACES OF WORSHIP
466,DCMS,EH,05/06/2014,Yarto Europe Ltd,1083727,"11,045.52",National Collections-Historic Properties Department,Goods & Souvenirs Purchases
467,DCMS,EH,09/06/2014,Yarto Europe Ltd,1083741,"17,642.88",National Collections-Historic Properties Department,Goods & Souvenirs Purchases
468,DCMS,EH,26/06/2014,Yorkshire Sculpture Park,82003018,"10,400.00",Heritage Protection & Planning-Nat. Planning & Conservation,GRANTS PAYABLE HISTORIC BUILDINGS
